Workbook

Sheet 入力データ
C1: 平 成 ２ ８ 年 空 港 管 理 状 況 調 書
C2: 空港名 ： | D2: 成田国際 （会社管理）
C3: 項目 | E3: 着 陸 回 数 （回） | G3: 乗 降 客 数 （人） | O3: 航空燃料供給量 （KＬ）
D4: 国際線 | E4: 国内線 | F4: 計 | H4: 国 際 線 | L4: 国 内 線 | N4: 合 計 | O4: ジェット燃料 | P4: その他燃料 | Q4: 合計
C5: 月別 | G5: 乗 客 | H5: 降 客 | I5: 通過客 | J5: 小 計 | K5: 乗 客 | L5: 降 客 | M5: 小 計
C7: 1月 | D7: 7796 | E7: 2110 | F7: =SUM(D7:E7) -> 9906 | G7: 1015531 | H7: 1031267 | I7: 252703 | J7: =SUM(G7:I7) -> 2299501 | K7: 255253 | L7: 275958 | M7: =SUM(K7:L7) -> 531211 | N7: =J7+M7 -> 2830712 | O7: 386310 | P7: 0 | Q7: =SUM(O7:P7) -> 386310
C8: 2月 | D8: 7409 | E8: 1950 | F8: =SUM(D8:E8) -> 9359 | G8: 1070631 | H8: 1008631 | I8: 204270 | J8: =SUM(G8:I8) -> 2283532 | K8: 256502 | L8: 265877 | M8: =SUM(K8:L8) -> 522379 | N8: =J8+M8 -> 2805911 | O8: 360052 | P8: 0 | Q8: =SUM(O8:P8) -> 360052
C9: 3月 | D9: 8090 | E9: 2202 | F9: 10292 | G9: 1127334 | H9: 1267933 | I9: 171856 | J9: =SUM(G9:I9) -> 2567123 | K9: 304002 | L9: 312843 | M9: =SUM(K9:L9) -> 616845 | N9: =J9+M9 -> 3183968 | O9: 390572 | P9: 0 | Q9: =SUM(O9:P9) -> 390572
C10: 4月 | D10: 7846 | E10: 2031 | F10: 9877 | G10: 1164030 | H10: 1063261 | I10: 176523 | J10: =SUM(G10:I10) -> 2403814 | K10: 256465 | L10: 260343 | M10: =SUM(K10:L10) -> 516808 | N10: =J10+M10 -> 2920622 | O10: 381480 | P10: 0 | Q10: =SUM(O10:P10) -> 381480
C11: 5月 | D11: 8127 | E11: 2195 | F11: 10322 | G11: 1019904 | H11: 1087836 | I11: 232249 | J11: 2339989 | K11: 281854 | L11: 291626 | M11: 573480 | N11: 2913469 | O11: 384660 | P11: 0 | Q11: 384660
C12: 6月 | D12: 7785 | E12: 2106 | F12: 9891 | G12: 1018825 | H12: 1051595 | I12: 252325 | J12: 2322745 | K12: 274322 | L12: 272984 | M12: 547306 | N12: 2870051 | O12: 378613 | P12: 0 | Q12: 378613
C13: 7月 | D13: 8287 | E13: 2309 | F13: 10596 | G13: 1180809 | H13: 1210038 | I13: 232864 | J13: 2623711 | K13: 316663 | L13: 317269 | M13: 633932 | N13: 3257643 | O13: 392481 | P13: 0 | Q13: 392481
C14: 8月 | D14: 8432 | E14: 2353 | F14: 10785 | G14: 1347173 | H14: 1287057 | I14: 197975 | J14: 2832205 | K14: 338997 | L14: 345108 | M14: 684105 | N14: 3516310 | O14: 397084 | P14: 0 | Q14: 397084
C15: 9月 | D15: 8167 | E15: 2218 | F15: 10385 | G15: 1152595 | H15: 1213737 | I15: 182178 | J15: 2548510 | K15: 301363 | L15: 308921 | M15: 610284 | N15: 3158794 | O15: 379088 | P15: 0 | Q15: 379088
C16: 10月 | D16: 8277 | E16: 2235 | F16: 10512 | G16: 1171076 | H16: 1192124 | I16: 181362 | J16: 2544562 | K16: 300109 | L16: 305513 | M16: 605622 | N16: 3150184 | O16: 383674 | P16: 0 | Q16: 383674
C17: 11月 | D17: 7853 | E17: 2153 | F17: 10006 | G17: 1108059 | H17: 1096623 | I17: 152396 | J17: 2357078 | K17: 288793 | L17: 297264 | M17: 586057 | N17: 2943135 | O17: 359742 | P17: 0 | Q17: 359742
C18: 12月 | D18: 8206 | E18: 2239 | F18: 10445 | G18: 1139332 | H18: 1119710 | I18: 192457 | J18: 2451499 | K18: 293950 | L18: 282597 | M18: 576547 | N18: 3028046 | O18: 376462 | P18: 0 | Q18: 376462
B20: 成田暦１ | C20: 暦年 計 | D20: =SUM(D7:D18) -> 96275 | E20: =SUM(E7:E18) -> 26101 | F20: =SUM(F7:F18) -> 122376 | G20: =SUM(G7:G18) -> 13515299 | H20: =SUM(H7:H18) -> 13629812 | I20: 2429158 | J20: 29574269 | K20: 3468273 | L20: 3536303 | M20: 7004576 | N20: 36578845 | O20: 4570218 | P20: =SUM(P7:P18) -> 0 | Q20: =SUM(Q7:Q18) -> 4570218
C22: 1月 | D22: 8138 | E22: 2240 | F22: =SUM(D22:E22) -> 10378 | G22: 1125761 | H22: 1179838 | I22: 222016 | J22: =SUM(G22:I22) -> 2527615 | K22: 283532 | L22: 300206 | M22: =SUM(K22:L22) -> 583738 | N22: =J22+M22 -> 3111353 | O22: 378409 | P22: 0 | Q22: =SUM(O22:P22) -> 378409
C23: 2月 | D23: 7417 | E23: 2122 | F23: =SUM(D23:E23) -> 9539 | G23: 1147338 | H23: 1056236 | I23: 163961 | J23: =SUM(G23:I23) -> 2367535 | K23: 287948 | L23: 298119 | M23: =SUM(K23:L23) -> 586067 | N23: =J23+M23 -> 2953602 | O23: 342320 | P23: 0 | Q23: =SUM(O23:P23) -> 342320
C24: 3月 | D24: 8372 | E24: 2442 | F24: =SUM(D24:E24) -> 10814 | G24: 1227683 | H24: 1353061 | I24: 139447 | J24: =SUM(G24:I24) -> 2720191 | K24: 349339 | L24: 357232 | M24: =SUM(K24:L24) -> 706571 | N24: =J24+M24 -> 3426762 | O24: 394536 | P24: 0 | Q24: =SUM(O24:P24) -> 394536
B26: 成田度１ | C26: 年度計 | D26: =SUM(D10:D18,D22:D24) -> 96907 | E26: =SUM(E10:E18,E22:E24) -> 26643 | F26: =SUM(F10:F18,F22:F24) -> 123550 | G26: =SUM(G10:G18,G22:G24) -> 13802585 | H26: 13911116 | I26: 2325753 | J26: 30039454 | K26: 3573335 | L26: 3637182 | M26: 7210517 | N26: =SUM(N10:N18,N22:N24) -> 37249971 | O26: 4548549 | P26: 0 | Q26: =SUM(Q10:Q18,Q22:Q24) -> 4548549
C30: 項目 | G30: 貨 物 取 扱 量 （トン） | N30: 郵 便 取 扱 量 （kg）
E31: 国 際 線 | H31: 国 内 線 | J31: 合計 | L31: 国 際 線 | O31: 国 内 線 | Q31: 合 計
C32: 月別 | D32: 積 | E32: 卸 | F32: 小 計 | G32: 積 | H32: 卸 | I32: 小 計 | K32: 積 | L32: 卸 | M32: 小 計 | N32: 積 | O32: 卸 | P32: 小 計
C34: 1月 | D34: 70446 | E34: 81936 | F34: =SUM(D34:E34) -> 152382 | G34: 2192 | H34: 1430 | I34: =SUM(G34:H34) -> 3622 | J34: =F34+I34 -> 156004 | K34: 1582850 | L34: 1372628 | M34: =SUM(K34:L34) -> 2955478 | N34: 267720 | O34: 11941 | P34: =SUM(N34:O34) -> 279661 | Q34: =M34+P34 -> 3235139
C35: 2月 | D35: 65880 | E35: 75262 | F35: =SUM(D35:E35) -> 141142 | G35: 2021 | H35: 1186 | I35: =SUM(G35:H35) -> 3207 | J35: =F35+I35 -> 144349 | K35: 1162500 | L35: 1096563 | M35: =SUM(K35:L35) -> 2259063 | N35: 235665 | O35: 9117 | P35: =SUM(N35:O35) -> 244782 | Q35: =M35+P35 -> 2503845
C36: 3月 | D36: 81832 | E36: 95733 | F36: =SUM(D36:E36) -> 177565 | G36: 2833 | H36: 2042 | I36: =SUM(G36:H36) -> 4875 | J36: =F36+I36 -> 182440 | K36: 1452163 | L36: 1322806 | M36: =SUM(K36:L36) -> 2774969 | N36: 223307 | O36: 12100 | P36: =SUM(N36:O36) -> 235407 | Q36: =M36+P36 -> 3010376
C37: 4月 | D37: 81982 | E37: 89652 | F37: =SUM(D37:E37) -> 171634 | G37: 2273 | H37: 1827 | I37: =SUM(G37:H37) -> 4100 | J37: =F37+I37 -> 175734 | K37: 1329750 | L37: 1337901 | M37: =SUM(K37:L37) -> 2667651 | N37: 263624 | O37: 10534 | P37: =SUM(N37:O37) -> 274158 | Q37: =M37+P37 -> 2941809
C38: 5月 | D38: 78926 | E38: 86050 | F38: 164976 | G38: 1871 | H38: 1432 | I38: 3303 | J38: 168279 | K38: 1208213 | L38: 1290486 | M38: 2498699 | N38: 247457 | O38: 11222 | P38: 258679 | Q38: 2757378
C39: 6月 | D39: 84761 | E39: 90175 | F39: 174936 | G39: 2064 | H39: 1680 | I39: 3744 | J39: 178680 | K39: 1123563 | L39: 1333986 | M39: 2457549 | N39: 245103 | O39: 12210 | P39: 257313 | Q39: 2714862
C40: 7月 | D40: 85190 | E40: 94443 | F40: 179633 | G40: 2372 | H40: 1802 | I40: 4174 | J40: 183807 | K40: 1009850 | L40: 1409328 | M40: 2419178 | N40: 234467 | O40: 10345 | P40: 244812 | Q40: 2663990
C41: 8月 | D41: 81521 | E41: 90981 | F41: 172502 | G41: 2623 | H41: 1689 | I41: 4312 | J41: 176814 | K41: 956375 | L41: 1319544 | M41: 2275919 | N41: 239843 | O41: 11636 | P41: 251479 | Q41: 2527398
C42: 9月 | D42: 86834 | E42: 95816 | F42: 182650 | G42: 2618 | H42: 1776 | I42: 4394 | J42: 187044 | K42: 979300 | L42: 1340134 | M42: 2319434 | N42: 393639 | O42: 16238 | P42: 409877 | Q42: 2729311
C43: 10月 | D43: 90718 | E43: 101767 | F43: 192485 | G43: 2651 | H43: 1673 | I43: 4324 | J43: 196809 | K43: 1028988 | L43: 1478072 | M43: 2507060 | N43: 221401 | O43: 12059 | P43: 233460 | Q43: 2740520
C44: 11月 | D44: 86901 | E44: 97584 | F44: 184485 | G44: 1913 | H44: 1649 | I44: 3562 | J44: 188047 | K44: 1150200 | L44: 1536536 | M44: 2686736 | N44: 195747 | O44: 13899 | P44: 209646 | Q44: 2896382
C45: 12月 | D45: 90097 | E45: 98733 | F45: 188830 | G45: 2190 | H45: 1821 | I45: 4011 | J45: 192841 | K45: 1524063 | L45: 2077343 | M45: 3601406 | N45: 240710 | O45: 17194 | P45: 257904 | Q45: 3859310
B47: 成田暦２ | C47: 暦年 計 | D47: =SUM(D34:D46) -> 985088 | E47: 1098132 | F47: 2083220 | G47: 27621 | H47: 20007 | I47: 47628 | J47: 2130848 | K47: 14507815 | L47: 16915327 | M47: =SUM(M34:M46) -> 31423142 | N47: =SUM(N34:N46) -> 3008683 | O47: 148495 | P47: =SUM(P34:P46) -> 3157178 | Q47: =SUM(Q34:Q46) -> 34580320
C49: 1月 | D49: 77385 | E49: 87452 | F49: =SUM(D49:E49) -> 164837 | G49: 1981 | H49: 2290 | I49: =SUM(G49:H49) -> 4271 | J49: =F49+I49 -> 169108 | K49: 1092575 | L49: 1551732 | M49: =SUM(K49:L49) -> 2644307 | N49: 166323 | O49: 11153 | P49: =SUM(N49:O49) -> 177476 | Q49: =M49+P49 -> 2821783
C50: 2月 | D50: 76829 | E50: 81746 | F50: =SUM(D50:E50) -> 158575 | G50: 1761 | H50: 1120 | I50: =SUM(G50:H50) -> 2881 | J50: =F50+I50 -> 161456 | K50: 1027938 | L50: 1387375 | M50: =SUM(K50:L50) -> 2415313 | N50: 163107 | O50: 10143 | P50: =SUM(N50:O50) -> 173250 | Q50: =M50+P50 -> 2588563
C51: 3月 | D51: 95671 | E51: 108861 | F51: =SUM(D51:E51) -> 204532 | G51: 2127 | H51: 1588 | I51: =SUM(G51:H51) -> 3715 | J51: =F51+I51 -> 208247 | K51: 1188513 | L51: 1666369 | M51: =SUM(K51:L51) -> 2854882 | N51: 170527 | O51: 13085 | P51: =SUM(N51:O51) -> 183612 | Q51: =M51+P51 -> 3038494
B53: 成田度２ | C53: 年度計 | D53: =SUM(D37:D45,D49:D51) -> 1016815 | E53: =SUM(E37:E45,E49:E51) -> 1123260 | F53: =SUM(F37:F45,F49:F51) -> 2140075 | G53: =SUM(G37:G45,G49:G51) -> 26444 | H53: 20347 | I53: 46791 | J53: 2186866 | K53: 13619328 | L53: 17728806 | M53: =SUM(M37:M45,M49:M51) -> 31348134 | N53: =SUM(N37:N45,N49:N51) -> 2781948 | O53: =SUM(O37:O45,O49:O51) -> 149718 | P53: =SUM(P37:P45,P49:P51) -> 2931666 | Q53: =SUM(Q37:Q45,Q49:Q51) -> 34279800
C55: =C1 -> 平 成 ２ ８ 年 空 港 管 理 状 況 調 書
C56: 空港名 ： | D56: 中部国際 （会社管理）
C57: 項目 | E57: 着 陸 回 数 （回） | G57: 乗 降 客 数 （人） | O57: 航空燃料供給量 （ＫＬ）
D58: 国際線 | E58: 国内線 | F58: 計 | H58: 国 際 線 | L58: 国 内 線 | N58: 合 計 | O58: ジェット燃料 | P58: その他燃料 | Q58: 合計
C59: 月別 | G59: 乗 客 | H59: 降 客 | I59: 通過客 | J59: 小 計 | K59: 乗 客 | L59: 降 客 | M59: 小 計
C61: 1月 | D61: 1641 | E61: 2584 | F61: =SUM(D61:E61) -> 4225 | G61: 200768 | H61: 222243 | I61: 1210 | J61: =SUM(G61:I61) -> 424221 | K61: 193289 | L61: 211799 | M61: =SUM(K61:L61) -> 405088 | N61: =SUM(J61,M61) -> 829309 | O61: 46688 | P61: 0 | Q61: =SUM(O61:P61) -> 46688
C62: 2月 | D62: 1611 | E62: 2413 | F62: =SUM(D62:E62) -> 4024 | G62: 217220 | H62: 210386 | I62: 2108 | J62: =SUM(G62:I62) -> 429714 | K62: 209814 | L62: 210922 | M62: =SUM(K62:L62) -> 420736 | N62: =SUM(J62,M62) -> 850450 | O62: 44175 | P62: 0 | Q62: =SUM(O62:P62) -> 44175
C63: 3月 | D63: 1690 | E63: 2643 | F63: 4333 | G63: 222423 | H63: 248560 | I63: 370 | J63: 471353 | K63: 238593 | L63: 245540 | M63: 484133 | N63: 955486 | O63: 47604 | P63: 0 | Q63: 47604
C64: 4月 | D64: 1689 | E64: 2429 | F64: 4118 | G64: 227810 | H64: 223477 | I64: 4434 | J64: 455721 | K64: 209274 | L64: 201207 | M64: 410481 | N64: 866202 | O64: 47025 | P64: 0 | Q64: 47025
C65: 5月 | D65: 1707 | E65: 2811 | F65: 4518 | G65: 199332 | H65: 219520 | I65: 356 | J65: 419208 | K65: 219578 | L65: 233464 | M65: 453042 | N65: 872250 | O65: 46008 | P65: 0 | Q65: 46008
C66: 6月 | D66: 1615 | E66: 2481 | F66: 4096 | G66: 198842 | H66: 208273 | I66: 1316 | J66: 408431 | K66: 220907 | L66: 218822 | M66: 439729 | N66: 848160 | O66: 45339 | P66: 0 | Q66: 45339
C67: 7月 | D67: 1658 | E67: 2665 | F67: 4323 | G67: 218651 | H67: 228726 | I67: 929 | J67: 448306 | K67: 252943 | L67: 249658 | M67: 502601 | N67: 950907 | O67: 45478 | P67: 0 | Q67: 45478
C68: 8月 | D68: 1712 | E68: 2852 | F68: 4564 | G68: 251364 | H68: 243022 | I68: 2733 | J68: 497119 | K68: 292039 | L68: 300382 | M68: 592421 | N68: 1089540 | O68: 49242 | P68: 0 | Q68: 49242
C69: 9月 | D69: 1594 | E69: 2626 | F69: 4220 | G69: 193591 | H69: 209750 | I69: 764 | J69: 404105 | K69: 256192 | L69: 258422 | M69: 514614 | N69: 918719 | O69: 44234 | P69: 0 | Q69: 44234
C70: 10月 | D70: 1641 | E70: 2668 | F70: 4309 | G70: 209993 | H70: 216284 | I70: 501 | J70: 426778 | K70: 256335 | L70: 261116 | M70: 517451 | N70: 944229 | O70: 45137 | P70: 0 | Q70: 45137
C71: 11月 | D71: 1481 | E71: 2535 | F71: 4016 | G71: 197985 | H71: 203366 | I71: 192 | J71: 401543 | K71: 237681 | L71: 240434 | M71: 478115 | N71: 879658 | O71: 43709 | P71: 0 | Q71: 43709
C72: 12月 | D72: 1545 | E72: 2568 | F72: 4113 | G72: 203529 | H72: 194301 | I72: 356 | J72: 398186 | K72: 229243 | L72: 210783 | M72: 440026 | N72: 838212 | O72: 44801 | P72: 0 | Q72: 44801
B74: 中部暦１ | C74: 暦年 計 | D74: =SUM(D61:D72) -> 19584 | E74: 31275 | F74: 50859 | G74: 2541508 | H74: 2627908 | I74: 15269 | J74: =SUM(J61:J72) -> 5184685 | K74: =SUM(K61:K72) -> 2815888 | L74: 2842549 | M74: =SUM(M61:M72) -> 5658437 | N74: 10843122 | O74: 549440 | P74: 0 | Q74: 549440
C76: 1月 | D76: 1622 | E76: 2583 | F76: =SUM(D76:E76) -> 4205 | G76: 200954 | H76: 236337 | I76: 1020 | J76: =SUM(G76:I76) -> 438311 | K76: 206300 | L76: 220762 | M76: 427062 | N76: =SUM(J76,M76) -> 865373 | O76: 46376 | P76: 0 | Q76: =SUM(O76:P76) -> 46376
C77: 2月 | D77: 1495 | E77: 2392 | F77: 3887 | G77: 222770 | H77: 203523 | I77: 4544 | J77: 430837 | K77: 215893 | L77: 216831 | M77: 432724 | N77: 863561 | O77: 43434 | P77: 0 | Q77: 43434
C78: 3月 | D78: 1679 | E78: 2653 | F78: 4332 | G78: 232929 | H78: 255026 | I78: 329 | J78: 488284 | K78: 258846 | L78: 260942 | M78: 519788 | N78: 1008072 | O78: 49958 | P78: 0 | Q78: 49958
B80: 中部度１ | C80: 年度計 | D80: =SUM(D64:D72,D76:D78) -> 19438 | E80: 31263 | F80: =SUM(F64:F72,F76:F78) -> 50701 | G80: =SUM(G64:G72,G76:G78) -> 2557750 | H80: 2641605 | I80: 17474 | J80: 5216829 | K80: 2855231 | L80: 2872823 | M80: 5728054 | N80: 10944883 | O80: 550741 | P80: 0 | Q80: =SUM(Q64:Q72,Q76:Q78) -> 550741
C84: 項目 | G84: 貨 物 取 扱 量 （トン） | N84: 郵 便 取 扱 量 （kg）
E85: 国 際 線 | H85: 国 内 線 | J85: 合計 | L85: 国 際 線 | O85: 国 内 線 | Q85: 合 計
C86: 月別 | D86: 積 | E86: 卸 | F86: 小 計 | G86: 積 | H86: 卸 | I86: 小 計 | K86: 積 | L86: 卸 | M86: 小 計 | N86: 積 | O86: 卸 | P86: 小 計
C88: 1月 | D88: 6339 | E88: 5797 | F88: =SUM(D88:E88) -> 12136 | G88: 990 | H88: 762 | I88: =SUM(G88:H88) -> 1752 | J88: =SUM(F88,I88) -> 13888 | K88: 435046 | L88: 119353 | M88: =SUM(K88:L88) -> 554399 | N88: 103762 | O88: 82125 | P88: =SUM(N88:O88) -> 185887 | Q88: =SUM(M88,P88) -> 740286
C89: 2月 | D89: 6176 | E89: 5476 | F89: 11652 | G89: 1033 | H89: 791 | I89: 1824 | J89: =SUM(F89,I89) -> 13476 | K89: 306510 | L89: 91751 | M89: 398261 | N89: 96563 | O89: 79723 | P89: 176286 | Q89: =SUM(M89,P89) -> 574547
C90: 3月 | D90: 7992 | E90: 6689 | F90: 14681 | G90: 1199 | H90: 888 | I90: 2087 | J90: 16768 | K90: 420790 | L90: 125626 | M90: 546416 | N90: 106492 | O90: 89119 | P90: 195611 | Q90: 742027
C91: 4月 | D91: 7820 | E91: 6882 | F91: 14702 | G91: 1079 | H91: 781 | I91: 1860 | J91: 16562 | K91: 375386 | L91: 123876 | M91: 499262 | N91: 103774 | O91: 82321 | P91: 186095 | Q91: 685357
C92: 5月 | D92: 7024 | E92: 6004 | F92: 13028 | G92: 917 | H92: 747 | I92: 1664 | J92: 14692 | K92: 343439 | L92: 112871 | M92: 456310 | N92: 100352 | O92: 81351 | P92: 181703 | Q92: 638013
C93: 6月 | D93: 7437 | E93: 6278 | F93: 13715 | G93: 1003 | H93: 785 | I93: 1788 | J93: 15503 | K93: 318795 | L93: 116529 | M93: 435324 | N93: 103244 | O93: 82110 | P93: 185354 | Q93: 620678
C94: 7月 | D94: 6737 | E94: 6447 | F94: 13184 | G94: 1055 | H94: 1024 | I94: 2079 | J94: 15263 | K94: 309967 | L94: 130220 | M94: 440187 | N94: 97351 | O94: 80651 | P94: 178002 | Q94: 618189
C95: 8月 | D95: 6598 | E95: 6268 | F95: 12866 | G95: 1090 | H95: 996 | I95: 2086 | J95: 14952 | K95: 282789 | L95: 113361 | M95: 396150 | N95: 88610 | O95: 74809 | P95: 163419 | Q95: 559569
C96: 9月 | D96: 7056 | E96: 6829 | F96: 13885 | G96: 1026 | H96: 920 | I96: 1946 | J96: 15831 | K96: 331159 | L96: 194322 | M96: 525481 | N96: 94524 | O96: 77128 | P96: 171652 | Q96: 697133
C97: 10月 | D97: 7982 | E97: 7992 | F97: 15974 | G97: 1081 | H97: 924 | I97: 2005 | J97: 17979 | K97: 346187 | L97: 161617 | M97: 507804 | N97: 101725 | O97: 82405 | P97: 184130 | Q97: 691934
C98: 11月 | D98: 7112 | E98: 6669 | F98: 13781 | G98: 1295 | H98: 779 | I98: 2074 | J98: 15855 | K98: 331941 | L98: 162280 | M98: 494221 | N98: 110489 | O98: 91870 | P98: 202359 | Q98: 696580
C99: 12月 | D99: 7122 | E99: 6715 | F99: 13837 | G99: 1388 | H99: 1000 | I99: 2388 | J99: 16225 | K99: 397446 | L99: 173292 | M99: 570738 | N99: 143192 | O99: 110489 | P99: 253681 | Q99: 824419
B101: 中部暦２ | C101: 暦年 計 | D101: =SUM(D88:D99) -> 85395 | E101: 78046 | F101: 163441 | G101: 13156 | H101: 10397 | I101: 23553 | J101: 186994 | K101: 4199455 | L101: 1625098 | M101: 5824553 | N101: 1250078 | O101: 1014101 | P101: 2264179 | Q101: 8088732
C103: 1月 | D103: 6273 | E103: 5839 | F103: =SUM(D103:E103) -> 12112 | G103: 952 | H103: 719 | I103: =SUM(G103:H103) -> 1671 | J103: =SUM(F103,I103) -> 13783 | K103: 300246 | L103: 124159 | M103: =SUM(K103:L103) -> 424405 | N103: 105108 | O103: 84067 | P103: =SUM(N103:O103) -> 189175 | Q103: =SUM(M103,P103) -> 613580
C104: 2月 | D104: 6908 | E104: 6139 | F104: 13047 | G104: 1090 | H104: 797 | I104: 1887 | J104: 14934 | K104: 310103 | L104: 119423 | M104: 429526 | N104: 97742 | O104: 78673 | P104: 176415 | Q104: 605941
C105: 3月 | D105: 7844 | E105: 7640 | F105: 15484 | G105: 1239 | H105: 901 | I105: 2140 | J105: 17624 | K105: 356008 | L105: 147008 | M105: 503016 | N105: 110948 | O105: 85837 | P105: 196785 | Q105: 699801
B107: 中部度２ | C107: 年度計 | D107: =SUM(D91:D99,D103:D105) -> 85913 | E107: 79702 | F107: 165615 | G107: 13215 | H107: 10373 | I107: 23588 | J107: 189203 | K107: 4003466 | L107: 1678958 | M107: 5682424 | N107: 1257059 | O107: 1011711 | P107: 2268770 | Q107: 7951194
C109: =C55 -> 平 成 ２ ８ 年 空 港 管 理 状 況 調 書
C110: 空港名 ： | D110: 関西国際 （会社管理）
C111: 項目 | E111: 着 陸 回 数 （回） | G111: 乗 降 客 数 （人） | O111: 航空燃料供給量 （ＫＬ）
D112: 国際線 | E112: 国内線 | F112: 計 | H112: 国 際 線 | L112: 国 内 線 | N112: 合 計 | O112: ジェット燃料 | P112: その他燃料 | Q112: 合計
C113: 月別 | G113: 乗 客 | H113: 降 客 | I113: 通過客 | J113: 小 計 | K113: 乗 客 | L113: 降 客 | M113: 小 計
C115: 1月 | D115: 5218 | E115: 1942 | F115: =SUM(D115:E115) -> 7160 | G115: 712564 | H115: 744313 | I115: 10721 | J115: =SUM(G115:I115) -> 1467598 | K115: 253523 | L115: 248678 | M115: =SUM(K115:L115) -> 502201 | N115: =J115+M115 -> 1969799 | O115: 117585 | P115: 0 | Q115: =SUM(O115:P115) -> 117585
C116: 2月 | D116: 5076 | E116: 1804 | F116: =SUM(D116:E116) -> 6880 | G116: 782961 | H116: 737122 | I116: 7116 | J116: =SUM(G116:I116) -> 1527199 | K116: 246265 | L116: 249601 | M116: =SUM(K116:L116) -> 495866 | N116: =J116+M116 -> 2023065 | O116: 111473 | P116: 0 | Q116: =SUM(O116:P116) -> 111473
C117: 3月 | D117: 5454 | E117: 1981 | F117: 7435 | G117: 759651 | H117: 841249 | I117: 4991 | J117: 1605891 | K117: 282271 | L117: 287050 | M117: 569321 | N117: 2175212 | O117: 120975 | P117: 0 | Q117: 120975
C118: 4月 | D118: 5372 | E118: 1983 | F118: 7355 | G118: 817990 | H118: 758788 | I118: 6072 | J118: 1582850 | K118: 257777 | L118: 252737 | M118: 510514 | N118: 2093364 | O118: 122655 | P118: 0 | Q118: 122655
C119: 5月 | D119: 5360 | E119: 2050 | F119: 7410 | G119: 698258 | H119: 724976 | I119: 7947 | J119: 1431181 | K119: 275331 | L119: 272515 | M119: 547846 | N119: 1979027 | O119: 117964 | P119: 0 | Q119: 117964
C120: 6月 | D120: 5257 | E120: 1957 | F120: 7214 | G120: 725456 | H120: 752473 | I120: 12139 | J120: 1490068 | K120: 262230 | L120: 255081 | M120: 517311 | N120: 2007379 | O120: 116598 | P120: 0 | Q120: 116598
C121: 7月 | D121: 5610 | E121: 2127 | F121: 7737 | G121: 832478 | H121: 843625 | I121: 12747 | J121: 1688850 | K121: 287168 | L121: 283129 | M121: 570297 | N121: 2259147 | O121: 115641 | P121: 0 | Q121: 115641
C122: 8月 | D122: 5615 | E122: 2103 | F122: 7718 | G122: 896177 | H122: 854503 | I122: 10134 | J122: 1760814 | K122: 302668 | L122: 302380 | M122: 605048 | N122: 2365862 | O122: 124595 | P122: 0 | Q122: 124595
C123: 9月 | D123: 5341 | E123: 2031 | F123: 7372 | G123: 715563 | H123: 758274 | I123: 10013 | J123: 1483850 | K123: 282065 | L123: 281489 | M123: 563554 | N123: 2047404 | O123: 118305 | P123: 0 | Q123: 118305
C124: 10月 | D124: 5483 | E124: 2096 | F124: 7579 | G124: 771247 | H124: 773794 | I124: 8289 | J124: 1553330 | K124: 286611 | L124: 285506 | M124: 572117 | N124: 2125447 | O124: 121038 | P124: 0 | Q124: 121038
C125: 11月 | D125: 5337 | E125: 1897 | F125: 7234 | G125: 754535 | H125: 754636 | I125: 6228 | J125: 1515399 | K125: 257673 | L125: 257877 | M125: 515550 | N125: 2030949 | O125: 117894 | P125: 0 | Q125: 117894
C126: 12月 | D126: 5505 | E126: 1954 | F126: 7459 | G126: 779372 | H126: 758209 | I126: 9752 | J126: 1547333 | K126: 253116 | L126: 253452 | M126: 506568 | N126: 2053901 | O126: 124204 | P126: 0 | Q126: 124204
B128: 関西暦１ | C128: 暦年 計 | D128: =SUM(D115:D126) -> 64628 | E128: =SUM(E115:E126) -> 23925 | F128: =SUM(F115:F126) -> 88553 | G128: =SUM(G115:G126) -> 9246252 | H128: =SUM(H115:H126) -> 9301962 | I128: 106149 | J128: 18654363 | K128: 3246698 | L128: 3229495 | M128: 6476193 | N128: 25130556 | O128: 1428927 | P128: =SUM(P115:P126) -> 0 | Q128: =SUM(Q115:Q126) -> 1428927
C130: 1月 | D130: 5522 | E130: 1999 | F130: =SUM(D130:E130) -> 7521 | G130: 780871 | H130: 866926 | I130: 11659 | J130: =SUM(G130:I130) -> 1659456 | K130: 263226 | L130: 261508 | M130: =SUM(K130:L130) -> 524734 | N130: =J130+M130 -> 2184190 | O130: =ROUND(([1]関西国際!$DM$20)/1000,0) -> 124682 | P130: =ROUND(([1]関西国際!$DM$21)/1000,0) -> 0 | Q130: =SUM(O130:P130) -> 124682
C131: 2月 | D131: 5013 | E131: 1903 | F131: =SUM(D131:E131) -> 6916 | G131: 832691 | H131: 749899 | I131: 7298 | J131: =SUM(G131:I131) -> 1589888 | K131: 256166 | L131: 259612 | M131: =SUM(K131:L131) -> 515778 | N131: =J131+M131 -> 2105666 | O131: =ROUND(([1]関西国際!$DN$20)/1000,0) -> 112449 | P131: =ROUND(([1]関西国際!$DN$21)/1000,0) -> 0 | Q131: =SUM(O131:P131) -> 112449
C132: 3月 | D132: 5583 | E132: 2128 | F132: =SUM(D132:E132) -> 7711 | G132: 834020 | H132: 901249 | I132: 5173 | J132: =SUM(G132:I132) -> 1740442 | K132: 309981 | L132: 310484 | M132: =SUM(K132:L132) -> 620465 | N132: =J132+M132 -> 2360907 | O132: =ROUND(([1]関西国際!$DO$20)/1000,0) -> 128601 | P132: =ROUND(([1]関西国際!$DO$21)/1000,0) -> 0 | Q132: =SUM(O132:P132) -> 128601
B134: 関西度１ | C134: 年度計 | D134: =SUM(D118:D126,D130:D132) -> 64998 | E134: =SUM(E118:E126,E130:E132) -> 24228 | F134: =SUM(F118:F126,F130:F132) -> 89226 | G134: =SUM(G118:G126,G130:G132) -> 9438658 | H134: 9497352 | I134: 107451 | J134: 19043461 | K134: 3294012 | L134: 3275770 | M134: 6569782 | N134: 25613243 | O134: 1444626 | P134: 0 | Q134: =SUM(Q118:Q126,Q130:Q132) -> 1444626
C138: 項目 | G138: 貨 物 取 扱 量 （トン） | N138: 郵 便 取 扱 量 （kg）
E139: 国 際 線 | H139: 国 内 線 | J139: 合計 | L139: 国 際 線 | O139: 国 内 線 | Q139: 合 計
C140: 月別 | D140: 積 | E140: 卸 | F140: 小 計 | G140: 積 | H140: 卸 | I140: 小 計 | K140: 積 | L140: 卸 | M140: 小 計 | N140: 積 | O140: 卸 | P140: 小 計
C142: 1月 | D142: 25240 | E142: 27176 | F142: =SUM(D142:E142) -> 52416 | G142: 886 | H142: 881 | I142: =SUM(G142:H142) -> 1767 | J142: =F142+I142 -> 54183 | K142: 1266071 | L142: 547528 | M142: =SUM(K142:L142) -> 1813599 | N142: 223946 | O142: 93351 | P142: =SUM(N142:O142) -> 317297 | Q142: =M142+P142 -> 2130896
C143: 2月 | D143: 21533 | E143: 23236 | F143: 44769 | G143: 821 | H143: 935 | I143: 1756 | J143: 46525 | K143: 941197 | L143: 402536 | M143: 1343733 | N143: 194791 | O143: 84715 | P143: 279506 | Q143: 1623239
C144: 3月 | D144: 28062 | E144: 32524 | F144: 60586 | G144: 927 | H144: 1041 | I144: 1968 | J144: 62554 | K144: 1330787 | L144: 657166 | M144: 1987953 | N144: 240039 | O144: 92319 | P144: 332358 | Q144: 2320311
C145: 4月 | D145: 28267 | E145: 30023 | F145: 58290 | G145: 730 | H145: 790 | I145: 1520 | J145: 59810 | K145: 1412507 | L145: 759855 | M145: 2172362 | N145: 221151 | O145: 93376 | P145: 314527 | Q145: 2486889
C146: 5月 | D146: 26714 | E146: 27726 | F146: 54440 | G146: 689 | H146: 815 | I146: 1504 | J146: 55944 | K146: 1283158 | L146: 640698 | M146: 1923856 | N146: 208994 | O146: 88102 | P146: 297096 | Q146: 2220952
C147: 6月 | D147: 27802 | E147: 29570 | F147: 57372 | G147: 738 | H147: 784 | I147: 1522 | J147: 58894 | K147: 1163833 | L147: 684626 | M147: 1848459 | N147: 221169 | O147: 96419 | P147: 317588 | Q147: 2166047
C148: 7月 | D148: 27445 | E148: 30428 | F148: 57873 | G148: 724 | H148: 785 | I148: 1509 | J148: 59382 | K148: 1050542 | L148: 663648 | M148: 1714190 | N148: 207674 | O148: 89062 | P148: 296736 | Q148: 2010926
C149: 8月 | D149: 27540 | E149: 30510 | F149: 58050 | G149: 734 | H149: 728 | I149: 1462 | J149: 59512 | K149: 974147 | L149: 600748 | M149: 1574895 | N149: 196578 | O149: 82198 | P149: 278776 | Q149: 1853671
C150: 9月 | D150: 31095 | E150: 33112 | F150: 64207 | G150: 730 | H150: 767 | I150: 1497 | J150: 65704 | K150: 1051979 | L150: 676366 | M150: 1728345 | N150: 195259 | O150: 89973 | P150: 285232 | Q150: 2013577
C151: 10月 | D151: 30935 | E151: 35542 | F151: 66477 | G151: 751 | H151: 747 | I151: 1498 | J151: 67975 | K151: 1136157 | L151: 773502 | M151: 1909659 | N151: 224729 | O151: 87391 | P151: 312120 | Q151: 2221779
C152: 11月 | D152: 30486 | E152: 36377 | F152: 66863 | G152: 765 | H152: 696 | I152: 1461 | J152: 68324 | K152: 1151976 | L152: 862143 | M152: 2014119 | N152: 261979 | O152: 93558 | P152: 355537 | Q152: 2369656
C153: 12月 | D153: 31560 | E153: 36908 | F153: 68468 | G153: 921 | H153: 889 | I153: 1810 | J153: 70278 | K153: 1412718 | L153: 990692 | M153: 2403410 | N153: 367455 | O153: 102507 | P153: 469962 | Q153: 2873372
B155: 関西暦２ | C155: 暦年 計 | D155: =SUM(D142:D154) -> 336679 | E155: 373132 | F155: 709811 | G155: 9416 | H155: 9858 | I155: 19274 | J155: 729085 | K155: 14175072 | L155: 8259508 | M155: =SUM(M142:M154) -> 22434580 | N155: =SUM(N142:N154) -> 2763764 | O155: =SUM(O142:O154) -> 1092971 | P155: =SUM(P142:P154) -> 3856735 | Q155: =SUM(Q142:Q154) -> 26291315
C157: 1月 | D157: =ROUND(([1]関西国際!$DM$38)/1000,0) -> 26989 | E157: =ROUND(([1]関西国際!$DM$39)/1000,0) -> 30882 | F157: =SUM(D157:E157) -> 57871 | G157: =ROUND(([1]関西国際!$DM$41)/1000,0) -> 663 | H157: =ROUND(([1]関西国際!$DM$42)/1000,0) -> 656 | I157: =SUM(G157:H157) -> 1319 | J157: =F157+I157 -> 59190 | K157: 1073608 | L157: 662141 | M157: =SUM(K157:L157) -> 1735749 | N157: 264994 | O157: 87951 | P157: =SUM(N157:O157) -> 352945 | Q157: =M157+P157 -> 2088694
C158: 2月 | D158: =ROUND(([1]関西国際!$DN$38)/1000,0) -> 26297 | E158: =ROUND(([1]関西国際!$DN$39)/1000,0) -> 27138 | F158: =SUM(D158:E158) -> 53435 | G158: =ROUND(([1]関西国際!$DN$41)/1000,0) -> 667 | H158: =ROUND(([1]関西国際!$DN$42)/1000,0) -> 642 | I158: =SUM(G158:H158) -> 1309 | J158: =F158+I158 -> 54744 | K158: 1152164 | L158: 610974 | M158: =SUM(K158:L158) -> 1763138 | N158: 237439 | O158: 82918 | P158: =SUM(N158:O158) -> 320357 | Q158: =M158+P158 -> 2083495
C159: 3月 | D159: =ROUND(([1]関西国際!$DO$38)/1000,0) -> 32558 | E159: =ROUND(([1]関西国際!$DO$39)/1000,0) -> 39334 | F159: =SUM(D159:E159) -> 71892 | G159: =ROUND(([1]関西国際!$DO$41)/1000,0) -> 814 | H159: =ROUND(([1]関西国際!$DO$42)/1000,0) -> 901 | I159: =SUM(G159:H159) -> 1715 | J159: =F159+I159 -> 73607 | K159: 1382808 | L159: 793687 | M159: =SUM(K159:L159) -> 2176495 | N159: 317484 | O159: 106703 | P159: =SUM(N159:O159) -> 424187 | Q159: =M159+P159 -> 2600682
B161: 関西度２ | C161: 年度計 | D161: =SUM(D145:D153,D157:D159) -> 347688 | E161: =SUM(E145:E153,E157:E159) -> 387550 | F161: =SUM(F145:F153,F157:F159) -> 735238 | G161: =SUM(G145:G153,G157:G159) -> 8926 | H161: 9200 | I161: 18126 | J161: 753364 | K161: 14245597 | L161: 8719080 | M161: =SUM(M145:M153,M157:M159) -> 22964677 | N161: =SUM(N145:N153,N157:N159) -> 2924905 | O161: =SUM(O145:O153,O157:O159) -> 1100158 | P161: =SUM(P145:P153,P157:P159) -> 4025063 | Q161: =SUM(Q145:Q153,Q157:Q159) -> 26989740
C163: =C109 -> 平 成 ２ ８ 年 空 港 管 理 状 況 調 書
C164: 空港名 ： | D164: 大阪国際 （会社管理）
C165: 項目 | E165: 着 陸 回 数 （回） | G165: 乗 降 客 数 （人） | O165: 航空燃料供給量 （ＫＬ）
D166: 国際線 | E166: 国内線 | F166: 計 | H166: 国 際 線 | L166: 国 内 線 | N166: 合 計 | O166: ジェット燃料 | P166: その他燃料 | Q166: 合計
C167: 月別 | G167: 乗 客 | H167: 降 客 | I167: 通過客 | J167: 小 計 | K167: 乗 客 | L167: 降 客 | M167: 小 計
C169: 1月 | D169: 0 | E169: 5856 | F169: =SUM(D169:E169) -> 5856 | G169: 0 | H169: 0 | I169: 0 | J169: =SUM(G169:I169) -> 0 | K169: 568022 | L169: 563547 | M169: =SUM(K169:L169) -> 1131569 | N169: =J169+M169 -> 1131569 | O169: 21097 | P169: 0 | Q169: =SUM(O169:P169) -> 21097
C170: 2月 | D170: 0 | E170: 5496 | F170: =SUM(D170:E170) -> 5496 | G170: 0 | H170: 0 | I170: 0 | J170: =SUM(G170:I170) -> 0 | K170: 553875 | L170: 541334 | M170: =SUM(K170:L170) -> 1095209 | N170: =J170+M170 -> 1095209 | O170: 19330 | P170: 0 | Q170: =SUM(O170:P170) -> 19330
C171: 3月 | D171: 0 | E171: 5870 | F171: 5870 | G171: 0 | H171: 0 | I171: 0 | J171: 0 | K171: 641203 | L171: 644182 | M171: 1285385 | N171: 1285385 | O171: 20436 | P171: 0 | Q171: 20436
C172: 4月 | D172: 1 | E172: 5617 | F172: 5618 | G172: 0 | H172: 0 | I172: 0 | J172: 0 | K172: 584093 | L172: 571191 | M172: 1155284 | N172: 1155284 | O172: 20592 | P172: 0 | Q172: 20592
C173: 5月 | D173: 0 | E173: 5771 | F173: 5771 | G173: 0 | H173: 0 | I173: 0 | J173: 0 | K173: 594823 | L173: 589976 | M173: 1184799 | N173: 1184799 | O173: 21916 | P173: 0 | Q173: 21916
C174: 6月 | D174: 0 | E174: 5634 | F174: 5634 | G174: 0 | H174: 0 | I174: 0 | J174: 0 | K174: 578657 | L174: 576905 | M174: 1155562 | N174: 1155562 | O174: 21034 | P174: 0 | Q174: 21034
C175: 7月 | D175: 1 | E175: 6007 | F175: 6008 | G175: 0 | H175: 0 | I175: 0 | J175: 0 | K175: 623544 | L175: 613623 | M175: 1237167 | N175: 1237167 | O175: 22112 | P175: 0 | Q175: 22112
C176: 8月 | D176: 1 | E176: 6263 | F176: 6264 | G176: 0 | H176: 0 | I176: 0 | J176: 0 | K176: 730961 | L176: 717710 | M176: 1448671 | N176: 1448671 | O176: 24155 | P176: 0 | Q176: 24155
C177: 9月 | D177: 0 | E177: 5651 | F177: 5651 | G177: 0 | H177: 0 | I177: 0 | J177: 0 | K177: 658689 | L177: 656853 | M177: 1315542 | N177: 1315542 | O177: 21511 | P177: 0 | Q177: 21511
C178: 10月 | D178: 0 | E178: 5842 | F178: 5842 | G178: 0 | H178: 0 | I178: 0 | J178: 0 | K178: 668927 | L178: 666909 | M178: 1335836 | N178: 1335836 | O178: 20357 | P178: 0 | Q178: 20357
C179: 11月 | D179: 1 | E179: 5657 | F179: 5658 | G179: 0 | H179: 0 | I179: 0 | J179: 0 | K179: 664347 | L179: 655984 | M179: 1320331 | N179: 1320331 | O179: 20855 | P179: 0 | Q179: 20855
C180: 12月 | D180: 1 | E180: 5927 | F180: 5928 | G180: 0 | H180: 0 | I180: 0 | J180: 0 | K180: 637019 | L180: 621304 | M180: 1258323 | N180: 1258323 | O180: 22176 | P180: 0 | Q180: 22176
B182: 大阪暦１ | C182: 暦年 計 | D182: =SUM(D169:D180) -> 5 | E182: =SUM(E169:E180) -> 69591 | F182: =SUM(F169:F180) -> 69596 | G182: =SUM(G169:G180) -> 0 | H182: =SUM(H169:H180) -> 0 | I182: 0 | J182: 0 | K182: 7504160 | L182: 7419518 | M182: 14923678 | N182: 14923678 | O182: 255571 | P182: =SUM(P169:P180) -> 0 | Q182: =SUM(Q169:Q180) -> 255571
C184: 1月 | D184: 0 | E184: 5879 | F184: =SUM(D184:E184) -> 5879 | G184: 0 | H184: 0 | I184: 0 | J184: =SUM(G184:I184) -> 0 | K184: 585585 | L184: 575602 | M184: =SUM(K184:L184) -> 1161187 | N184: =J184+M184 -> 1161187 | O184: =ROUND(([1]大阪国際!$DM$20)/1000,0) -> 21943 | P184: =ROUND(([1]大阪国際!$DM$21)/1000,0) -> 0 | Q184: =SUM(O184:P184) -> 21943
C185: 2月 | D185: 0 | E185: 5247 | F185: =SUM(D185:E185) -> 5247 | G185: 0 | H185: 0 | I185: 0 | J185: =SUM(G185:I185) -> 0 | K185: 571125 | L185: 559372 | M185: =SUM(K185:L185) -> 1130497 | N185: =J185+M185 -> 1130497 | O185: =ROUND(([1]大阪国際!$DN$20)/1000,0) -> 20136 | P185: =ROUND(([1]大阪国際!$DN$21)/1000,0) -> 0 | Q185: =SUM(O185:P185) -> 20136
C186: 3月 | D186: 0 | E186: 5872 | F186: =SUM(D186:E186) -> 5872 | G186: 0 | H186: 0 | I186: 0 | J186: =SUM(G186:I186) -> 0 | K186: 697831 | L186: 699365 | M186: =SUM(K186:L186) -> 1397196 | N186: =J186+M186 -> 1397196 | O186: =ROUND(([1]大阪国際!$DO$20)/1000,0) -> 21203 | P186: =ROUND(([1]大阪国際!$DO$21)/1000,0) -> 0 | Q186: =SUM(O186:P186) -> 21203
B188: 大阪度１ | C188: 年度計 | D188: =SUM(D172:D180,D184:D186) -> 5 | E188: =SUM(E172:E180,E184:E186) -> 69367 | F188: =SUM(F172:F180,F184:F186) -> 69372 | G188: =SUM(G172:G180,G184:G186) -> 0 | H188: 0 | I188: 0 | J188: 0 | K188: 7595601 | L188: 7504794 | M188: 15100395 | N188: 15100395 | O188: 257990 | P188: 0 | Q188: =SUM(Q172:Q180,Q184:Q186) -> 257990
C192: 項目 | G192: 貨 物 取 扱 量 （トン） | N192: 郵 便 取 扱 量 （kg）
E193: 国 際 線 | H193: 国 内 線 | J193: 合計 | L193: 国 際 線 | O193: 国 内 線 | Q193: 合 計
C194: 月別 | D194: 積 | E194: 卸 | F194: 小 計 | G194: 積 | H194: 卸 | I194: 小 計 | K194: 積 | L194: 卸 | M194: 小 計 | N194: 積 | O194: 卸 | P194: 小 計
C196: 1月 | D196: 0 | E196: 0 | F196: =SUM(D196:E196) -> 0 | G196: 4573 | H196: 4864 | I196: =SUM(G196:H196) -> 9437 | J196: =F196+I196 -> 9437 | K196: 0 | L196: 0 | M196: =SUM(K196:L196) -> 0 | N196: 390652 | O196: 400393 | P196: =SUM(N196:O196) -> 791045 | Q196: =M196+P196 -> 791045
C197: 2月 | D197: 0 | E197: 0 | F197: 0 | G197: 4796 | H197: 4944 | I197: 9740 | J197: 9740 | K197: 0 | L197: 0 | M197: 0 | N197: 373046 | O197: 369146 | P197: 742192 | Q197: 742192
C198: 3月 | D198: 0 | E198: 0 | F198: 0 | G198: 5257 | H198: 6001 | I198: 11258 | J198: 11258 | K198: 0 | L198: 0 | M198: 0 | N198: 434004 | O198: 421363 | P198: 855367 | Q198: 855367
C199: 4月 | D199: 0 | E199: 0 | F199: 0 | G199: 5023 | H199: 5965 | I199: 10988 | J199: 10988 | K199: 0 | L199: 0 | M199: 0 | N199: 376904 | O199: 389885 | P199: 766789 | Q199: 766789
C200: 5月 | D200: 0 | E200: 0 | F200: 0 | G200: 4174 | H200: 5650 | I200: 9824 | J200: 9824 | K200: 0 | L200: 0 | M200: 0 | N200: 333656 | O200: 366740 | P200: 700396 | Q200: 700396
C201: 6月 | D201: 0 | E201: 0 | F201: 0 | G201: 4873 | H201: 5780 | I201: 10653 | J201: 10653 | K201: 0 | L201: 0 | M201: 0 | N201: 344767 | O201: 405458 | P201: 750225 | Q201: 750225
C202: 7月 | D202: 0 | E202: 0 | F202: 0 | G202: 5090 | H202: 6862 | I202: 11952 | J202: 11952 | K202: 0 | L202: 0 | M202: 0 | N202: 319863 | O202: 347803 | P202: 667666 | Q202: 667666
C203: 8月 | D203: 0 | E203: 0 | F203: 0 | G203: 4809 | H203: 6862 | I203: 11671 | J203: 11671 | K203: 0 | L203: 0 | M203: 0 | N203: 297704 | O203: 323027 | P203: 620731 | Q203: 620731
C204: 9月 | D204: 0 | E204: 0 | F204: 0 | G204: 5134 | H204: 6857 | I204: 11991 | J204: 11991 | K204: 0 | L204: 0 | M204: 0 | N204: 331218 | O204: 313106 | P204: 644324 | Q204: 644324
C205: 10月 | D205: 0 | E205: 0 | F205: 0 | G205: 5358 | H205: 6773 | I205: 12131 | J205: 12131 | K205: 0 | L205: 0 | M205: 0 | N205: 368076 | O205: 346939 | P205: 715015 | Q205: 715015
C206: 11月 | D206: 0 | E206: 0 | F206: 0 | G206: 5508 | H206: 5718 | I206: 11226 | J206: 11226 | K206: 0 | L206: 0 | M206: 0 | N206: 370085 | O206: 355634 | P206: 725719 | Q206: 725719
C207: 12月 | D207: 0 | E207: 0 | F207: 0 | G207: 6693 | H207: 6398 | I207: 13091 | J207: 13091 | K207: 0 | L207: 0 | M207: 0 | N207: 476647 | O207: 416811 | P207: 893458 | Q207: 893458
B209: 大阪暦２ | C209: 暦年 計 | D209: =SUM(D196:D208) -> 0 | E209: 0 | F209: 0 | G209: 61288 | H209: 72674 | I209: 133962 | J209: 133962 | K209: 0 | L209: 0 | M209: =SUM(M196:M208) -> 0 | N209: =SUM(N196:N208) -> 4416622 | O209: =SUM(O196:O208) -> 4456305 | P209: =SUM(P196:P208) -> 8872927 | Q209: =SUM(Q196:Q208) -> 8872927
C211: 1月 | D211: 0 | E211: 0 | F211: =SUM(D211:E211) -> 0 | G211: 4647 | H211: 4813 | I211: =SUM(G211:H211) -> 9460 | J211: =F211+I211 -> 9460 | K211: 0 | L211: 0 | M211: =SUM(K211:L211) -> 0 | N211: 345655 | O211: 340043 | P211: =SUM(N211:O211) -> 685698 | Q211: =M211+P211 -> 685698
C212: 2月 | D212: 0 | E212: 0 | F212: =SUM(D212:E212) -> 0 | G212: 4874 | H212: 4853 | I212: =SUM(G212:H212) -> 9727 | J212: =F212+I212 -> 9727 | K212: 0 | L212: 0 | M212: =SUM(K212:L212) -> 0 | N212: 325228 | O212: 299159 | P212: =SUM(N212:O212) -> 624387 | Q212: =M212+P212 -> 624387
C213: 3月 | D213: 0 | E213: 0 | F213: =SUM(D213:E213) -> 0 | G213: 5668 | H213: 5968 | I213: =SUM(G213:H213) -> 11636 | J213: =F213+I213 -> 11636 | K213: 0 | L213: 0 | M213: =SUM(K213:L213) -> 0 | N213: 386715 | O213: 374094 | P213: =SUM(N213:O213) -> 760809 | Q213: =M213+P213 -> 760809
B215: 大阪度２ | C215: 年度計 | D215: =SUM(D199:D207,D211:D213) -> 0 | E215: =SUM(E199:E207,E211:E213) -> 0 | F215: =SUM(F199:F207,F211:F213) -> 0 | G215: =SUM(G199:G207,G211:G213) -> 61851 | H215: 72499 | I215: 134350 | J215: 134350 | K215: 0 | L215: 0 | M215: =SUM(M199:M207,M211:M213) -> 0 | N215: =SUM(N199:N207,N211:N213) -> 4276518 | O215: =SUM(O199:O207,O211:O213) -> 4278699 | P215: =SUM(P199:P207,P211:P213) -> 8555217 | Q215: =SUM(Q199:Q207,Q211:Q213) -> 8555217
C217: =C163 -> 平 成 ２ ８ 年 空 港 管 理 状 況 調 書
C218: 空港名 ： | D218: 会社管理空港計
C219: 項目 | E219: 着 陸 回 数 （回） | G219: 乗 降 客 数 （人） | O219: 航空燃料供給量 （KＬ）
D220: 国際線 | E220: 国内線 | F220: 計 | H220: 国 際 線 | L220: 国 内 線 | N220: 合 計 | O220: ジェット燃料 | P220: その他燃料 | Q220: 合計
C221: 月別 | G221: 乗 客 | H221: 降 客 | I221: 通過客 | J221: 小 計 | K221: 乗 客 | L221: 降 客 | M221: 小 計
C223: 1月 | D223: =D7+D61+D115+D169 -> 14655 | E223: =E7+E61+E115+E169 -> 12492 | F223: =SUM(D223:E223) -> 27147 | G223: =G7+G61+G115+G169 -> 1928863 | H223: =H7+H61+H115+H169 -> 1997823 | I223: =I7+I61+I115+I169 -> 264634 | J223: =SUM(G223:I223) -> 4191320 | K223: =K7+K61+K115+K169 -> 1270087 | L223: 1299982 | M223: =SUM(K223:L223) -> 2570069 | N223: =SUM(M223,J223) -> 6761389 | O223: =O7+O61+O115+O169 -> 571680 | P223: =P7+P61+P115+P169 -> 0 | Q223: =SUM(O223:P223) -> 571680
C224: 2月 | D224: 14096 | E224: 11663 | F224: =SUM(D224:E224) -> 25759 | G224: =G8+G62+G116+G170 -> 2070812 | H224: 1956139 | I224: 213494 | J224: =SUM(G224:I224) -> 4240445 | K224: 1266456 | L224: 1267734 | M224: =SUM(K224:L224) -> 2534190 | N224: =SUM(M224,J224) -> 6774635 | O224: 535030 | P224: 0 | Q224: =SUM(O224:P224) -> 535030
C225: 3月 | D225: 15234 | E225: 12696 | F225: 27930 | G225: 2109408 | H225: 2357742 | I225: 177217 | J225: 4644367 | K225: 1466069 | L225: 1489615 | M225: 2955684 | N225: 7600051 | O225: 579587 | P225: 0 | Q225: 579587
C226: 4月 | D226: 14908 | E226: 12060 | F226: 26968 | G226: 2209830 | H226: 2045526 | I226: 187029 | J226: 4442385 | K226: 1307609 | L226: 1285478 | M226: 2593087 | N226: 7035472 | O226: 571752 | P226: 0 | Q226: 571752
C227: 5月 | D227: 15194 | E227: 12827 | F227: 28021 | G227: 1917494 | H227: 2032332 | I227: 240552 | J227: 4190378 | K227: 1371586 | L227: 1387581 | M227: 2759167 | N227: 6949545 | O227: 570548 | P227: 0 | Q227: 570548
C228: 6月 | D228: 14657 | E228: 12178 | F228: 26835 | G228: 1943123 | H228: 2012341 | I228: 265780 | J228: 4221244 | K228: 1336116 | L228: 1323792 | M228: 2659908 | N228: 6881152 | O228: 561584 | P228: 0 | Q228: 561584
C229: 7月 | D229: 15556 | E229: 13108 | F229: 28664 | G229: 2231938 | H229: 2282389 | I229: 246540 | J229: 4760867 | K229: 1480318 | L229: 1463679 | M229: 2943997 | N229: 7704864 | O229: 575712 | P229: 0 | Q229: 575712
C230: 8月 | D230: 15760 | E230: 13571 | F230: 29331 | G230: 2494714 | H230: 2384582 | I230: 210842 | J230: 5090138 | K230: 1664665 | L230: 1665580 | M230: 3330245 | N230: 8420383 | O230: 595076 | P230: 0 | Q230: 595076
C231: 9月 | D231: 15102 | E231: 12526 | F231: 27628 | G231: 2061749 | H231: 2181761 | I231: 192955 | J231: 4436465 | K231: 1498309 | L231: 1505685 | M231: 3003994 | N231: 7440459 | O231: 563138 | P231: 0 | Q231: 563138
C232: 10月 | D232: 15401 | E232: 12841 | F232: 28242 | G232: 2152316 | H232: 2182202 | I232: 190152 | J232: 4524670 | K232: 1511982 | L232: 1519044 | M232: 3031026 | N232: 7555696 | O232: 570206 | P232: 0 | Q232: 570206
C233: 11月 | D233: 14672 | E233: 12242 | F233: 26914 | G233: 2060579 | H233: 2054625 | I233: 158816 | J233: 4274020 | K233: 1448494 | L233: 1451559 | M233: 2900053 | N233: 7174073 | O233: 542200 | P233: 0 | Q233: 542200
C234: 12月 | D234: 15257 | E234: 12688 | F234: 27945 | G234: 2122233 | H234: 2072220 | I234: 202565 | J234: =SUM(G234:I234) -> 4397018 | K234: 1413328 | L234: 1368136 | M234: 2781464 | N234: 7178482 | O234: 567643 | P234: 0 | Q234: 567643
C236: 暦年 計 | D236: =SUM(D223:D234) -> 180492 | E236: 150892 | F236: =SUM(F223:F234) -> 331384 | G236: 25303059 | H236: 25559682 | I236: 2550576 | J236: 53413317 | K236: 17035019 | L236: 17027865 | M236: 34062884 | N236: =SUM(N223:N235) -> 87476201 | O236: =SUM(O223:O234) -> 6804156 | P236: =SUM(P223:P234) -> 0 | Q236: =SUM(O236:P236) -> 6804156
C238: 1月 | D238: =D22+D76+D130+D184 -> 15282 | E238: 12701 | F238: =SUM(D238:E238) -> 27983 | G238: =G22+G76+G130+G184 -> 2107586 | H238: 2283101 | I238: 234695 | J238: =SUM(G238:I238) -> 4625382 | K238: =K22+K76+K130+K184 -> 1338643 | L238: 1358078 | M238: =SUM(K238:L238) -> 2696721 | N238: =SUM(M238,J238) -> 7322103 | O238: =O22+O76+O130+O184 -> 571410 | P238: 0 | Q238: =SUM(O238:P238) -> 571410
C239: 2月 | D239: 13925 | E239: 11664 | F239: =SUM(D239:E239) -> 25589 | G239: 2202799 | H239: 2009658 | I239: 175803 | J239: =SUM(G239:I239) -> 4388260 | K239: 1331132 | L239: 1333934 | M239: =SUM(K239:L239) -> 2665066 | N239: =SUM(M239,J239) -> 7053326 | O239: 518339 | P239: 0 | Q239: =SUM(O239:P239) -> 518339
C240: 3月 | D240: 15634 | E240: 13095 | F240: =SUM(D240:E240) -> 28729 | G240: 2294632 | H240: 2509336 | I240: 144949 | J240: =SUM(G240:I240) -> 4948917 | K240: 1615997 | L240: 1628023 | M240: =SUM(K240:L240) -> 3244020 | N240: =SUM(M240,J240) -> 8192937 | O240: 594298 | P240: 0 | Q240: =SUM(O240:P240) -> 594298
C242: 年度計 | D242: =SUM(D226:D234,D238:D240) -> 181348 | E242: 151501 | F242: 332849 | G242: 25798993 | H242: 26050073 | I242: 2450678 | J242: 54299744 | K242: 17318179 | L242: 17290569 | M242: 34608748 | N242: 88908492 | O242: =SUM(O226:O234,O238:O240) -> 6801906 | P242: =SUM(P226:P234,P238:P240) -> 0 | Q242: =SUM(Q226:Q234,Q238:Q240) -> 6801906
C246: 項目 | G246: 貨 物 取 扱 量 （トン） | N246: 郵 便 取 扱 量 （kg）
E247: 国 際 線 | H247: 国 内 線 | J247: 合計 | L247: 国 際 線 | O247: 国 内 線 | Q247: 合 計
C248: 月別 | D248: 積 | E248: 卸 | F248: 小 計 | G248: 積 | H248: 卸 | I248: 小 計 | K248: 積 | L248: 卸 | M248: 小 計 | N248: 積 | O248: 卸 | P248: 小 計
C250: 1月 | D250: =D34+D88+D142+D196 -> 102025 | E250: 114909 | F250: =SUM(D250:E250) -> 216934 | G250: =G34+G88+G142+G196 -> 8641 | H250: 7937 | I250: =SUM(G250:H250) -> 16578 | J250: =F250+I250 -> 233512 | K250: =K34+K88+K142+K196 -> 3283967 | L250: 2039509 | M250: =SUM(K250:L250) -> 5323476 | N250: =N34+N88+N142+N196 -> 986080 | O250: 587810 | P250: =SUM(N250:O250) -> 1573890 | Q250: =M250+P250 -> 6897366
C251: 2月 | D251: 93589 | E251: 103974 | F251: =SUM(D251:E251) -> 197563 | G251: 8671 | H251: 7856 | I251: =SUM(G251:H251) -> 16527 | J251: =F251+I251 -> 214090 | K251: 2410207 | L251: 1590850 | M251: =SUM(K251:L251) -> 4001057 | N251: 900065 | O251: 542701 | P251: =SUM(N251:O251) -> 1442766 | Q251: =M251+P251 -> 5443823
C252: 3月 | D252: 117886 | E252: 134946 | F252: 252832 | G252: 10216 | H252: 9972 | I252: 20188 | J252: 273020 | K252: 3203740 | L252: 2105598 | M252: 5309338 | N252: 1003842 | O252: 614901 | P252: 1618743 | Q252: 6928081
C253: 4月 | D253: 118069 | E253: 126557 | F253: 244626 | G253: 9105 | H253: 9363 | I253: 18468 | J253: 263094 | K253: 3117643 | L253: 2221632 | M253: 5339275 | N253: 965453 | O253: 576116 | P253: 1541569 | Q253: 6880844
C254: 5月 | D254: 112664 | E254: 119780 | F254: 232444 | G254: 7651 | H254: 8644 | I254: 16295 | J254: 248739 | K254: 2834810 | L254: 2044055 | M254: 4878865 | N254: 890459 | O254: 547415 | P254: 1437874 | Q254: 6316739
C255: 6月 | D255: 120000 | E255: 126023 | F255: 246023 | G255: 8678 | H255: 9029 | I255: 17707 | J255: 263730 | K255: 2606191 | L255: 2135141 | M255: 4741332 | N255: 914283 | O255: 596197 | P255: 1510480 | Q255: 6251812
C256: 7月 | D256: 119372 | E256: 131318 | F256: 250690 | G256: 9241 | H256: 10473 | I256: 19714 | J256: 270404 | K256: 2370359 | L256: 2203196 | M256: 4573555 | N256: 859355 | O256: 527861 | P256: 1387216 | Q256: 5960771
... 5177 more rows

Sheet 入力データ一覧 (hidden)
B2: 成田暦１ | C2: 成田暦２ | D2: 成田度１ | E2: 成田度２
B3: 中部暦１ | C3: 中部暦２ | D3: 中部度１ | E3: 中部度２
B4: 関西暦１ | C4: 関西暦２ | D4: 関西度１ | E4: 関西度２
B5: 大阪暦１ | C5: 大阪暦２ | D5: 大阪度１ | E5: 大阪度２
B6: 羽田暦１ | C6: 羽田暦２ | D6: 羽田度１ | E6: 羽田度２
B7: 新千歳暦１ | C7: 新千歳暦２ | D7: 新千歳度１ | E7: 新千歳度２
B8: 稚内暦１ | C8: 稚内暦２ | D8: 稚内度１ | E8: 稚内度２
B9: 釧路暦１ | C9: 釧路暦２ | D9: 釧路度１ | E9: 釧路度２
B10: 函館暦１ | C10: 函館暦２ | D10: 函館度１ | E10: 函館度２
B11: 仙台暦１ | C11: 仙台暦２ | D11: 仙台度１ | E11: 仙台度２
B12: 新潟暦１ | C12: 新潟暦２ | D12: 新潟度１ | E12: 新潟度２
B13: 広島暦１ | C13: 広島暦２ | D13: 広島度１ | E13: 広島度２
B14: 高松暦１ | C14: 高松暦２ | D14: 高松度１ | E14: 高松度２
B15: 松山暦１ | C15: 松山暦２ | D15: 松山度１ | E15: 松山度２
B16: 高知暦１ | C16: 高知暦２ | D16: 高知度１ | E16: 高知度２
B17: 福岡暦１ | C17: 福岡暦２ | D17: 福岡度１ | E17: 福岡度２
B18: 北九州暦１ | C18: 北九州暦２ | D18: 北九州度１ | E18: 北九州度２
B19: 長崎暦１ | C19: 長崎暦２ | D19: 長崎度１ | E19: 長崎度２
B20: 熊本暦１ | C20: 熊本暦２ | D20: 熊本度１ | E20: 熊本度２
B21: 大分暦１ | C21: 大分暦２ | D21: 大分度１ | E21: 大分度２
B22: 宮崎暦１ | C22: 宮崎暦２ | D22: 宮崎度１ | E22: 宮崎度２
B23: 鹿児島暦１ | C23: 鹿児島暦２ | D23: 鹿児島度１ | E23: 鹿児島度２
B24: 那覇暦１ | C24: 那覇暦２ | D24: 那覇度１ | E24: 那覇度２
B25: 旭川暦１ | C25: 旭川暦２ | D25: 旭川度１ | E25: 旭川度２
B26: 帯広暦１ | C26: 帯広暦２ | D26: 帯広度１ | E26: 帯広度２
B27: 秋田暦１ | C27: 秋田暦２ | D27: 秋田度１ | E27: 秋田度２
B28: 山形暦１ | C28: 山形暦２ | D28: 山形度１ | E28: 山形度２
B29: 山口宇部暦１ | C29: 山口宇部暦２ | D29: 山口宇部度１ | E29: 山口宇部度２
B30: 利尻暦１ | C30: 利尻暦２ | D30: 利尻度１ | E30: 利尻度２
B31: 礼文暦１ | C31: 礼文暦２ | D31: 礼文度１ | E31: 礼文度２
B32: 奥尻暦１ | C32: 奥尻暦２ | D32: 奥尻度１ | E32: 奥尻度２
B33: 中標津暦１ | C33: 中標津暦２ | D33: 中標津度１ | E33: 中標津度２
B34: 紋別暦１ | C34: 紋別暦２ | D34: 紋別度１ | E34: 紋別度２
B35: 女満別暦１ | C35: 女満別暦２ | D35: 女満別度１ | E35: 女満別度２
B36: 青森暦１ | C36: 青森暦２ | D36: 青森度１ | E36: 青森度２
B37: 花巻暦１ | C37: 花巻暦２ | D37: 花巻度１ | E37: 花巻度２
B38: 大館能代暦１ | C38: 大館能代暦２ | D38: 大館能代度１ | E38: 大館能代度２
B39: 庄内暦１ | C39: 庄内暦２ | D39: 庄内度１ | E39: 庄内度２
B40: 福島暦１ | C40: 福島暦２ | D40: 福島度１ | E40: 福島度２
B41: 大島暦１ | C41: 大島暦２ | D41: 大島度１ | E41: 大島度２
B42: 新島暦１ | C42: 新島暦２ | D42: 新島度１ | E42: 新島度２
B43: 神津島暦１ | C43: 神津島暦２ | D43: 神津島度１ | E43: 神津島度２
B44: 三宅島暦１ | C44: 三宅島暦２ | D44: 三宅島度１ | E44: 三宅島度２
B45: 八丈島暦１ | C45: 八丈島暦２ | D45: 八丈島度１ | E45: 八丈島度２
B46: 佐渡暦１ | C46: 佐渡暦２ | D46: 佐渡度１ | E46: 佐渡度２
B47: 松本暦１ | C47: 松本暦２ | D47: 松本度１ | E47: 松本度２
B48: 静岡暦１ | C48: 静岡暦２ | D48: 静岡度１ | E48: 静岡度２
B49: 富山暦１ | C49: 富山暦２ | D49: 富山度１ | E49: 富山度２
B50: 能登暦１ | C50: 能登暦２ | D50: 能登度１ | E50: 能登度２
B51: 福井暦１ | C51: 福井暦２ | D51: 福井度１ | E51: 福井度２
B52: 神戸暦１ | C52: 神戸暦２ | D52: 神戸度１ | E52: 神戸度２
B53: 南紀白浜暦１ | C53: 南紀白浜暦２ | D53: 南紀白浜度１ | E53: 南紀白浜度２
B54: 鳥取暦１ | C54: 鳥取暦２ | D54: 鳥取度１ | E54: 鳥取度２
B55: 隠岐暦１ | C55: 隠岐暦２ | D55: 隠岐度１ | E55: 隠岐度２
B56: 出雲暦１ | C56: 出雲暦２ | D56: 出雲度１ | E56: 出雲度２
B57: 石見暦１ | C57: 石見暦２ | D57: 石見度１ | E57: 石見度２
B58: 岡山暦１ | C58: 岡山暦２ | D58: 岡山度１ | E58: 岡山度２
B59: 佐賀暦１ | C59: 佐賀暦２ | D59: 佐賀度１ | E59: 佐賀度２
B60: 対馬暦１ | C60: 対馬暦２ | D60: 対馬度１ | E60: 対馬度２
B61: 小値賀暦１ | C61: 小値賀暦２ | D61: 小値賀度１ | E61: 小値賀度２
B62: 福江暦１ | C62: 福江暦２ | D62: 福江度１ | E62: 福江度２
B63: 上五島暦１ | C63: 上五島暦２ | D63: 上五島度１ | E63: 上五島度２
B64: 壱岐暦１ | C64: 壱岐暦２ | D64: 壱岐度１ | E64: 壱岐度２
B65: 種子島暦１ | C65: 種子島暦２ | D65: 種子島度１ | E65: 種子島度２
B66: 屋久島暦１ | C66: 屋久島暦２ | D66: 屋久島度１ | E66: 屋久島度２
B67: 奄美暦１ | C67: 奄美暦２ | D67: 奄美度１ | E67: 奄美度２
B68: 喜界暦１ | C68: 喜界暦２ | D68: 喜界度１ | E68: 喜界度２
B69: 徳之島暦１ | C69: 徳之島暦２ | D69: 徳之島度１ | E69: 徳之島度２
B70: 沖永良部暦１ | C70: 沖永良部暦２ | D70: 沖永良部度１ | E70: 沖永良部度２
B71: 与論暦１ | C71: 与論暦２ | D71: 与論度１ | E71: 与論度２
B72: 粟国暦１ | C72: 粟国暦２ | D72: 粟国度１ | E72: 粟国度２
B73: 久米島暦１ | C73: 久米島暦２ | D73: 久米島度１ | E73: 久米島度２
B74: 慶良間暦１ | C74: 慶良間暦２ | D74: 慶良間度１ | E74: 慶良間度２
B75: 南大東暦１ | C75: 南大東暦２ | D75: 南大東度１ | E75: 南大東度２
B76: 北大東暦１ | C76: 北大東暦２ | D76: 北大東度１ | E76: 北大東度２
B77: 伊江島暦１ | C77: 伊江島暦２ | D77: 伊江島度１ | E77: 伊江島度２
B78: 宮古暦１ | C78: 宮古暦２ | D78: 宮古度１ | E78: 宮古度２
B79: 下地島暦１ | C79: 下地島暦２ | D79: 下地島度１ | E79: 下地島度２
B80: 多良間暦１ | C80: 多良間暦２ | D80: 多良間度１ | E80: 多良間度２
B81: 新石垣暦１ | C81: 新石垣暦２ | D81: 新石垣度１ | E81: 新石垣度２
B82: 波照間暦１ | C82: 波照間暦２ | D82: 波照間度１ | E82: 波照間度２
B83: 与那国暦１ | C83: 与那国暦２ | D83: 与那国度１ | E83: 与那国度２
B84: 札幌暦１ | C84: 札幌暦２ | D84: 札幌度１ | E84: 札幌度２
B85: 三沢暦１ | C85: 三沢暦２ | D85: 三沢度１ | E85: 三沢度２
B86: 百里暦１ | C86: 百里暦２ | D86: 百里度１ | E86: 百里度２
B87: 小松暦１ | C87: 小松暦２ | D87: 小松度１ | E87: 小松度２
B88: 美保暦１ | C88: 美保暦２ | D88: 美保度１ | E88: 美保度２
B89: 岩国暦１ | C89: 岩国暦２ | D89: 岩国度１ | E89: 岩国度２
B90: 徳島暦１ | C90: 徳島暦２ | D90: 徳島度１ | E90: 徳島度２
B91: 調布暦１ | C91: 調布暦２ | D91: 調布度１ | E91: 調布度２
B92: 名古屋暦１ | C92: 名古屋暦２ | D92: 名古屋度１ | E92: 名古屋度２
B93: 但馬暦１ | C93: 但馬暦２ | D93: 但馬度１ | E93: 但馬度２
B94: 岡南暦１ | C94: 岡南暦２ | D94: 岡南度１ | E94: 岡南度２
B95: 天草暦１ | C95: 天草暦２ | D95: 天草度１ | E95: 天草度２
B96: 大分県央暦１ | C96: 大分県央暦２ | D96: 大分県央度１ | E96: 大分県央度２
B97: 八尾暦１ | C97: 八尾暦２ | D97: 八尾度１ | E97: 八尾度２
B98: 豊富暦１ | C98: 豊富暦２ | D98: 豊富度１ | E98: 豊富度２
B99: 砂川暦１ | C99: 砂川暦２ | D99: 砂川度１ | E99: 砂川度２
B100: 占冠暦１ | C100: 占冠暦２ | D100: 占冠度１ | E100: 占冠度２
B101: ニセコ暦１ | C101: ニセコ暦２ | D101: ニセコ度１ | E101: ニセコ度２
B102: 増毛暦１ | C102: 増毛暦２ | D102: 増毛度１ | E102: 増毛度２
B103: 乙部暦１ | C103: 乙部暦２ | D103: 乙部度１ | E103: 乙部度２
B104: 米沢暦１ | C104: 米沢暦２ | D104: 米沢度１ | E104: 米沢度２
B105: つくば暦１ | C105: つくば暦２ | D105: つくば度１ | E105: つくば度２
B106: 栃木暦１ | C106: 栃木暦２ | D106: 栃木度１ | E106: 栃木度２
B107: 高崎暦１ | C107: 高崎暦２ | D107: 高崎度１ | E107: 高崎度２
B108: 群馬暦１ | C108: 群馬暦２ | D108: 群馬度１ | E108: 群馬度２
B109: 東京都東京暦１ | C109: 東京都東京暦２ | D109: 東京都東京度１ | E109: 東京都東京度２
B110: 静岡ヘリ暦１ | C110: 静岡ヘリ暦２ | D110: 静岡ヘリ度１ | E110: 静岡ヘリ度２
B111: 若狭暦１ | C111: 若狭暦２ | D111: 若狭度１ | E111: 若狭度２
B112: 津市伊勢湾暦１ | C112: 津市伊勢湾暦２ | D112: 津市伊勢湾度１ | E112: 津市伊勢湾度２
B113: 舞洲暦１ | C113: 舞洲暦２ | D113: 舞洲度１ | E113: 舞洲度２
B114: 神戸ヘリ暦１ | C114: 神戸ヘリ暦２ | D114: 神戸ヘリ度１ | E114: 神戸ヘリ度２
B115: 奈良県暦１ | C115: 奈良県暦２ | D115: 奈良県度１ | E115: 奈良県度２
B116: 広島ヘリ暦１ | C116: 広島ヘリ暦２ | D116: 広島ヘリ度１ | E116: 広島ヘリ度２
B117: 佐伯暦１ | C117: 佐伯暦２ | D117: 佐伯度１ | E117: 佐伯度２
B118: 枕崎暦１ | C118: 枕崎暦２ | D118: 枕崎度１ | E118: 枕崎度２
